Cogmind - Beta 13 @@@ ROGUE MODE // 2024.05.08 @ 21:11:49 Player: TinyBoulder Result: Destroyed by Y-54 Guardian with Gatling Laser Performance ------------- Evolutions (0) 0 Regions Visited (3) 600 Robots Destroyed (21) 105 Value Destroyed (660) 660 Prototype IDs (1) 20 Alien Tech Used (0) 0 Bonus (0) 0 TOTAL SCORE: 1385 Bonus ------- None Cogmind --------- Core Integrity 0/250 Matter 258/300 Energy 99/100 System Corruption 3% Temperature Cool (6) Movement Rolling (100) Location -7/Recycling Parts ------- > --- POWER (1) -------- (None) > --- PROPULSION (2) --- Compact Wheel > --- UTILITY (2) ------ Scrap Engine > --- WEAPON (2) ------- Heavy Assault Rifle Burst Thermal Ion Construct/G > --- INVENTORY (5) ---- Terrain Scanner Mini Grenade Launcher Subdweller Shrapnel Launcher Dirty Datajack (20) Peak State ------------ > --- POWER ------------ (None) > --- PROPULSION ------- Makeshift Leg Compact Wheel > --- UTILITY ---------- Scrap Engine > --- WEAPON ----------- Burst Thermal Ion Construct/G > --- INVENTORY -------- Terrain Scanner Heavy Assault Rifle Mini Grenade Launcher Subdweller Shrapnel Launcher Dirty Datajack [Rating: 27] Favorites ----------- Power Light Ion Engine Engine Light Ion Engine Propulsion Aluminum Leg Leg Aluminum Leg Wheel Compact Wheel Utility Small Storage Unit Device Scrap Engine Storage Small Storage Unit Protection Scrap Shield Weapon Heavy Assault Rifle Energy Gun Medium Laser Ballistic Gun Heavy Assault Rifle Ballistic Cannon Light Cannon Launcher Subdweller Shrapnel Launcher Build | -11 -10 -10 -7 ------- Run | Yrd Mat Sub Rec Slots Evolved . | . . . . Power . | . . . . Propulsion . | . . . . Utility . | . . . . Weapon . | . . . . Parts Attached 26 | 6 4 14 2 Power 2 | 1 . 1 . Engine 2 | 1 . 1 . Core . | . . . . Reactor . | . . . . Propulsion 5 | 2 . 3 . Treads . | . . . . Leg 3 | 2 . 1 . Wheel 2 | . . 2 . Hover . | . . . . Flight . | . . . . Utility 5 | 1 1 2 1 Device 1 | . . . 1 Storage 2 | 1 . 1 . Processor . | . . . . Hackware . | . . . . Protection 2 | . 1 1 . Artifact . | . . . . Weapon 14 | 2 3 8 1 Energy Gun 2 | 1 . 1 . Energy Cannon . | . . . . Ballistic Gun 9 | 1 2 5 1 Ballistic Cannon 1 | . 1 . . Launcher 2 | . . 2 . Special Weapon . | . . . . Impact Weapon . | . . . . Slashing Weapon . | . . . . Piercing Weapon . | . . . . Special Melee Weapon . | . . . . Unidentified Prototypes . | . . . . Parts Lost 8 | . . 7 1 Power 2 | . . 2 . Propulsion 2 | . . 1 1 Utility 2 | . . 2 . Weapon 2 | . . 2 . Highest Loss Streak 2 | . . 2 1 To Critical Strikes . | . . . . Average Slot Usage (%) 80 | . 93 79 55 Engine 9 | . 14 8 . Leg 15 | . 28 12 12 Wheel 11 | . . 14 14 Storage 7 | . 14 5 . Protection 7 | . 8 8 . Energy Gun 1 | . 6 . . Ballistic Gun 22 | . 15 24 9 Ballistic Cannon 1 | . 5 . . Launcher 2 | . . 3 4 Naked Turns . | . . . . Heaviest Build 29 | 11 15 29 12 Greatest Support 36 | 20 20 36 16 Greatest Overweight (x) 1 | . . 1 . Average Overweight (x) . | . . . . Largest Inventory Capacity 8 | 8 8 8 5 Average Capacity 6 | 6 8 6 5 Most Carried 8 | 2 8 8 5 Average Carried 5 | 1 5 6 4 Final Capacity 8 | 8 8 8 5 Final Carried 8 | 2 8 5 4 Scrap Engine Consumption 5 | . . . 5 Constructs Created 1 | . . . 1 Class Distribution -------------------- 99% | Mutant Dominant Class ---------------- Mutant | -10/Materials Mutant | -10/Subcaves Mutant | -7/Recycling Resources | -11 -10 -10 -7 ----------- Run | Yrd Mat Sub Rec Matter Collected 988 | 213 4 588 183 Remotely . | . . . . Salvage Created 513 | . . 470 43 Parts 36 | . . 35 1 Haulers Intercepted . | . . . . Recyclers Shooed . | . . . . Parts Field Recycled . | . . . . Retrieved Matter . | . . . . Parts Self-Destructed 9 | . . 9 . Prevented . | . . . . Kills | -11 -10 -10 -7 ------- Run | Yrd Mat Sub Rec Combat Hostiles Destroyed 19 | . . 18 1 Guns 11 | . . 10 1 AOE 8 | . . 8 . Classes Destroyed 4 | . . 3 1 Turret 2 | . . 2 . Swarmer 6 | . . 6 . Programmer 1 | . . . 1 Subdweller 12 | . . 12 . Best Kill Streak 6 | . . 6 1 Combat Bots Only 4 | . . 4 1 Max Kills in Single Turn 2 | . . 2 1 Gunslinging . | . . . . Exploded 2 | . . 2 . Melee . | . . . . Uniques/NPCs Destroyed . | . . . . Combat | -11 -10 -10 -7 -------- Run | Yrd Mat Sub Rec Hostile Shots Fired 114 | . . 96 18 Missed 41 | . . 34 7 Damage Taken 1502 | . . 1384 118 Core 259 | . . 214 45 Absorbed by Shields . | . . . . Redirected to Shielding 51 | . . 51 . Core Remaining (%) 100 | 100 . . . Volleys Fired 64 | . 3 57 4 Largest 2 | . 2 2 2 Hottest 85 | . 85 65 67 Shots Fired 118 | . 6 104 8 Gun 104 | . 3 93 8 Cannon 3 | . 3 . . Launcher 11 | . . 11 . Special . | . . . . Kinetic 111 | . 3 104 4 Thermal 7 | . 3 . 4 Explosive . | . . . . Electromagnetic . | . . . . Robot Hit Streak 10 | . 5 10 5 Robot Miss Streak 3 | . 1 3 1 Penetration Max . | . . . . Secondary Targets 2 | . . 1 1 Max Gunslinging Chain 1 | . . 1 1 Shots Hit Robots 87 | . 5 74 8 Core Hits 36 | . . 35 1 Critical Kills . | . . . . Critical Parts Destroyed . | . . . . Critical Strikes 1 | . 1 . . Burn 1 | . 1 . . Melee Attacks . | . . . . Impact . | . . . . Slashing . | . . . . Piercing . | . . . . Sneak Attacks . | . . . . Combat Hostiles . | . . . . Follow-up Attacks . | . . . . Damage Inflicted 2020 | . 77 1841 102 Guns 1325 | . 38 1185 102 Cannons 39 | . 39 . . Explosions 656 | . . 656 . Melee . | . . . . Ramming . | . . . . Kinetic 1932 | . 39 1841 52 Thermal 88 | . 38 . 50 Explosive . | . . . . Electromagnetic . | . . . . Impact . | . . . . Slashing . | . . . . Piercing . | . . . . Highest Corruption 3 | . 1 1 3 Average Corruption 1 | . 1 1 1 Corruption Purged . | . . . . Corruption Blocked . | . . . . Effects 11 | . 1 7 3 Message Errors 2 | . . 2 . Matter Fused 5 | . . 3 2 Heat Flow Errors 1 | . . 1 . Energy Discharges 3 | . 1 1 1 Overload Shots . | . . . . Overflow Damage 11 | . . 11 . Projectiles . | . . . . Explosions 11 | . . 11 . Melee . | . . . . Knockbacks . | . . . . Impact . | . . . . Kinetic . | . . . . Secondary . | . . . . Self-Inflicted Damage 37 | . . 37 . Shots 1 | . . 1 . Rammed . | . . . . Targets Rammed . | . . . . Kicked . | . . . . Crushed . | . . . . Highest Temperature 78 | . 72 78 9 Average Temperature 39 | . 39 58 9 Received Heat Transfer 246 | . . 228 18 Siege Activations . | . . . . Robots Corrupted . | . . . . Combat Hostiles . | . . . . Parts Fried . | . . . . Impact Corruptions . | . . . . Robots Melted . | . . . . Combat Hostiles . | . . . . Parts Melted . | . . . . Heat Transferred 310 | . 185 . 125 Parts Sabotaged . | . . . . Parts Stolen . | . . . . Parts Stripped . | . . . . Power Chain Reactions . | . . . . Alert | -11 -10 -10 -7 ------- Run | Yrd Mat Sub Rec Peak Influence 251 | . 38 . 251 Initial 208 | . . . 208 Average 57 | . 24 . 220 Maximum Alert Level 1 | . . . 1 Low Security (%) 82 | 100 100 . . Level 1 17 | . . . 100 Level 2 . | . . . . Level 3 . | . . . . Level 4 . | . . . . Level 5 . | . . . . High Security . | . . . . Max Security . | . . . . Squads Dispatched . | . . . . Investigation . | . . . . Extermination . | . . . . Reinforcement . | . . . . Assault . | . . . . Garrison . | . . . . Intercept . | . . . . Searches Triggered . | . . . . Construction Impeded . | . . . . Haulers Reinforced . | . . . . Active Scanning Responses . | . . . . Cargo Convoy Interrupts . | . . . . Stealth | -11 -10 -10 -7 --------- Run | Yrd Mat Sub Rec Distress Signals . | . . . . Communications Jammed . | . . . . Distress Signals . | . . . . Times Spotted 22 | . 1 18 3 Peak Tracking Total 4 | . 1 4 3 Tactical Retreats 2 | . . 2 . Traps | -11 -10 -10 -7 ------- Run | Yrd Mat Sub Rec Traps Triggered 3 | . . 3 . Indirectly . | . . . . Trap Hack Attempts . | . . . . Triggered . | . . . . Disarmed . | . . . . Reprogrammed . | . . . . Reused . | . . . . Traps Extracted . | . . . . Installed . | . . . . Triggered . | . . . . Machines | -11 -10 -10 -7 ---------- Run | Yrd Mat Sub Rec Machines Disabled 4 | . . 4 . Max in Single Turn 4 | . . 4 . Machines Repaired . | . . . . Machines Dismantled . | . . . . Machines Sabotaged . | . . . . Overloaded Fab Kills . | . . . . Hacking | -11 -10 -10 -7 --------- Run | Yrd Mat Sub Rec Machines Accessed 6 | . 4 . 2 Terminals 4 | . 3 . 1 Fabricators . | . . . . Repair Stations . | . . . . Recycling Units 2 | . 1 . 1 Scanalyzers . | . . . . Garrison Access . | . . . . Total Hacks 16 | . 11 . 5 Successful 9 | . 6 . 3 Failed 7 | . 5 . 2 Catastrophic 2 | . 1 . 1 Database Lockouts . | . . . . Manual 9 | . 6 . 3 Terminals 9 | . 8 . 1 Fabricators . | . . . . Repair Stations . | . . . . Recycling Units 7 | . 3 . 4 Scanalyzers . | . . . . Garrison Access . | . . . . Terminal Hacks 3 | . 3 . . Emergency Access Points 1 | . 1 . . Locate Traps 1 | . 1 . . Zone Layout 1 | . 1 . . Fabricator Hacks . | . . . . Repair Station Hacks . | . . . . Recycling Unit Hacks 2 | . 1 . 1 Report Inventory 2 | . 1 . 1 Scanalyzer . | . . . . Garrison Access Hacks . | . . . . Unauthorized Hacks 4 | . 2 . 2 Terminals 2 | . 2 . . Botnet 1 | . 1 . . Operators 1 | . 1 . . Fabricators . | . . . . Repair Stations . | . . . . Recycling Units 2 | . . . 2 Monitor 1 | . . . 1 Tunnel 1 | . . . 1 Scanalyzers . | . . . . Garrison Access . | . . . . Data Cores Recovered . | . . . . Used . | . . . . Hacking Detections 5 | . 3 . 2 Full Trace Events 1 | . 1 . . Feedback Events 1 | . 1 . . Corruption 1 | . 1 . . Feedback Blocked . | . . . . Robot Schematics Acquired . | . . . . Robots Built . | . . . . Authchips . | . . . . Time . | . . . . Total Robot Build Rating . | . . . . Part Schematics Acquired . | . . . . Parts Built . | . . . . Authchips . | . . . . Time . | . . . . Total Part Build Rating . | . . . . Parts Repaired . | . . . . Time . | . . . . Parts Recycled . | . . . . Recycled Matter . | . . . . Retrieved Matter . | . . . . Retrieved Components . | . . . . Parts Scanalyzed . | . . . . Part Schematics Acquired . | . . . . Parts Damaged . | . . . . Bothacking | -11 -10 -10 -7 ------------ Run | Yrd Mat Sub Rec Used RIF Installer . | . . . . Robots Hacked . | . . . . Non-combat . | . . . . Combat . | . . . . Robot Hacks Applied . | . . . . Relay Couplers Released . | . . . . Fabnet Peak Effective % . | . . . . Robots Rewired . | . . . . Allies Hacked . | . . . . Hacks Repelled . | . . . . Allies | -11 -10 -10 -7 -------- Run | Yrd Mat Sub Rec Total Allies . | . . . . Largest Group . | . . . . Highest-Rated Group . | . . . . Highest-Rated Ally . | . . . . Total Orders . | . . . . Ally Attacks . | . . . . Total Damage . | . . . . Kills . | . . . . Allies Corrupted . | . . . . Allies Melted . | . . . . Intel | -11 -10 -10 -7 ------- Run | Yrd Mat Sub Rec Robot Analysis Total . | . . . . Derelict Logs Recovered 1 | . . 1 . Drone Launches . | . . . . Drone Recoveries . | . . . . Exploration | -11 -10 -10 -7 ------------- Run | Yrd Mat Sub Rec Turns Passed 2607 | 60 509 1916 122 Spaces Moved 1774 | 44 226 1400 104 Core 4 | 4 . . . Treads . | . . . . Legs 766 | 40 226 500 . Wheels 1004 | . . 900 104 Hover . | . . . . Flight . | . . . . Fastest Speed 50 | 50 120 100 100 Average Speed 112 | 113 120 111 100 Slowest Speed 140 | 120 120 140 100 Overloaded Moves . | . . . . Propulsion Burnouts . | . . . . Robots Hopped . | . . . . Cave-ins Triggered . | . . . . Exploration Rate (%) 38 | 4 45 80 25 Regions Visited 3 Branch Regions 2 Pre-discovered Areas 1 | . . . 1 Known Exits Taken . | . . . . Unknown Exits Taken 3 | 1 1 1 . Scrap Searched 2 | . . 2 . Spaces Dug 24 | . . 24 . Terrain Destroyed 129 | . . 129 . Melee . | . . . . Projectile . | . . . . AOE 129 | . . 129 . Terrain Rammed . | . . . . Walls Destroyed . | . . . . Machines Disabled . | . . . . Actions | -11 -10 -10 -7 --------- Run | Yrd Mat Sub Rec Total 2269 | 51 457 1645 116 Wait 377 | . 217 158 2 Move 1771 | 43 225 1399 104 Hop . | . . . . Pick Up 10 | 2 5 3 . Fast Attach 20 | 6 4 9 1 Attach 3 | . . 2 1 Detach 2 | . 1 . 1 Swap 3 | . . 3 . Drop 14 | . 2 9 3 Fire 64 | . 3 57 4 Melee . | . . . . Ram . | . . . . Kick . | . . . . Crush . | . . . . Escape Stasis . | . . . . Rewire . | . . . . Trap . | . . . . Miscellaneous 5 | . . 5 . Route ------- -11/Scrapyard -10/Materials (discovered 3 exits: [*Mat] / [*Min] / [*Sub]) -10/Subcaves (discovered 3 exits: [*Mat x2] / *Rec) -7/Recycling History --------- Turn | Location | Event 21 | -11/Scrapyard | Discovered new exit (range 16) 61 | -11/Scrapyard | Entered Materials 109 | -10/Materials | Discovered new exit (range 14) 243 | -10/Materials | Discovered new exit (range 15) 304 | -10/Materials | Build established: Mutant 551 | -10/Materials | Discovered new exit (range 5) 570 | -10/Materials | Entered Subcaves 576 | -10/Subcaves | Shifting Twisted Machinery released Sub. Shrapnel Launcher 583 | -10/Subcaves | Shifting Twisted Machinery released Battle Rifle 790 | -10/Subcaves | Learned Materials machine intel 1112 | -10/Subcaves | Shifting Twisted Machinery released Flamer 1144 | -10/Subcaves | Shifting Twisted Machinery released Sub. Beam Cannon 1520 | -10/Subcaves | A swath of the cavern ceiling suddenly collapsed 1646 | -10/Subcaves | Disturbed a concealed Subdweller 1805 | -10/Subcaves | Discovered new exit (range 11) 2058 | -10/Subcaves | Ambushed by Subdwellers from Twisted Machinery 2144 | -10/Subcaves | Core integrity fell below 50% 2183 | -10/Subcaves | A swath of the cavern ceiling suddenly collapsed 2234 | -10/Subcaves | Core integrity fell below 20% 2345 | -10/Subcaves | Discovered new exit (range 11) 2459 | -10/Subcaves | Ambushed by Subdweller buried in earth 2469 | -10/Subcaves | Discovered new exit (range 16) 2486 | -10/Subcaves | Entered Recycling 2487 | -7/Recycling | Found Scrap Engine 2608 | -7/Recycling | Destroyed by Y-54 Guardian with Gatling Laser Last Messages --------------- 02549_ Scrap Engine consumes Imp. Deuterium Engine. 02559_ System corrupted: Matter fused (-7). 02561_ Connecting with Recycling Unit... >>Recycling(Report) Matter reserves: 0 Inventory: Xenon Bombardment Thruster (36%) >>Trojan(Monitor) Trojan loaded successfully. Testing... Monitoring response positive. >>Force(Tunnel) DISCOVERED[-1/Command] 02578_ System corrupted: Matter fused (-10). 02579_ Scrap Engine constructs Burst Thermal Ion Construct/G. 02592_ P-60 Hacker springs to life. 02593_ Mak. Leg destroyed. 02600_ P-60 Hacker destroyed. 02600_ Switching to secondary target: Y-54 Guardian. 02603_ R-06 Scavenger collects Mic. Nuclear Core. Map ----- +----------------------------------------------------+ | ??????????????????????????????????????? | | ??????????????????????????????????????? | | ??????????????????????????????????????? | | ??????????????????????????????????????? | | ??????????????????????????????????????? | | ??????????????????????????????????????? | | ??????????????????????????????????????? | | ??????????????????????????????????????? | | ??????????????????????????????????????? | | ??????????????????????????????????????? | | ??????????????????????????????????????? | | ????????????????? ? ????????????????? | | ???????????????? ! # ????????????????? | | ??????????????? # ????????????????? | | ?????????????? [ !# #???????????????? | | ?????????????? # #???????????????? | | ?????????????? # ######## ???????? | | ??????????????? + ???????? | | ???????????????? % #Y ????????? | | ?????????????????#/## ?? ????? | | ?????????????????# #???? | | ?????????????????# """"" #???? | | ##############???# """"" #???? | | #???# """"" #???? | | #???# #???? | | ##### l @ #???? | | + #???? | | ################# #???? | | #?????????????????? #???? | | # ############????????????????????????? | | ###???????????????##??????????????????? | | ???????????????#### #####?????????????? | | ##############?# #?????????????? | | % / #?# #?????????????? | | / #?# #?????????????? | | % ! !! % #?# #?????????????? | | / #?# #?????????????? | | #?# #?????????????? | | ! #?# #?????????????? | | ##############?# #?????????????? | | ??#""#%%%#?????# #?????????????? | | ###T"# %%###########+######???????????? | | #???????????? | | #???????????? | | #???????????? | | #####################%% ###???????????? | | ????????????????????# % #?????????????? | | ????????????????????#####?????????????? | | ??????????????????????????????????????? | | ??????????????????????????????????????? | +----------------------------------------------------+ Best States ------------- Heat Dissipation 25 Energy Generation 10 Energy Capacity 250 Matter Stores 300 Matter Capacity 300 Sight Range 16 Terrain Scan Density 10 Armor Coverage 800 Propulsion Shielding 33 Evasion (%) 55 Item Schematics ----------------- None Robot Schematics ------------------ None Fabricated ------------ Nothing Alien Tech Used ----------------- None Achievements -------------- None Challenges ------------ None Game ------ Seed LayeredPotentialClaw Manual? 0 Play Time 00:21:03 Cumulative 77.5 hours Start 2024.05.08 @ 16:02:22 End 2024.05.08 @ 21:11:49 Sessions 3 Manual Loads 0 Difficulty Rogue Special Mode None Game No. 73 Rogue 73 Adventurer 0 Explorer 0 Win Type - Total 3 Types 2/0/0/1/0/0/0/0/0 Lore% 56 Gallery% 63 Achievement% 51 Wizard Run 0 Options --------- Layout 0 ASCII 0 Keyboard 0 Movement Mouse Keybinds 0 Fullscreen 1 Font 18/Terminus Map View 76x50 Zoom Use 0% Tactical HUD 1 Map Filters NONE Filters NONE Steam 1 RUN: 204626a7-05a1-43da-aae5-45b1771260ba